Cogmind - Beta 11 @@@ ROGUE MODE // 2022.04.16 @ 15:29:49 Player: RNGesus Result: Destroyed by Y-45 Defender with Beam Rifle Performance ------------- Evolutions (0) 0 Regions Visited (4) 800 Robots Destroyed (30) 150 Value Destroyed (848) 848 Prototype IDs (23) 460 Alien Tech Used (0) 0 Bonus (325) 325 TOTAL SCORE: 2583 Bonus ------- Follower Combat Kills 25 Aligned with FarCom 300 Cogmind --------- Core Integrity 0/250 Matter 231/300 Energy 100/100 System Corruption 9% Temperature Cool (27) Movement Treading (160) Location -9/Mines Parts ------- > --- POWER (1) -------- (None) > --- PROPULSION (2) --- Light Treads Light Treads > --- UTILITY (2) ------ (None) > --- WEAPON (2) ------- Light Assault Rifle Grenade Launcher > --- INVENTORY (5) ---- Light Treads Huge Storage Unit Transport Network Coupler Rocket Launcher Peak State ------------ > --- POWER ------------ Light Nuclear Core > --- PROPULSION ------- Light Treads Light Treads > --- UTILITY ---------- Improved Heat Sink Huge Storage Unit > --- WEAPON ----------- Light Assault Rifle Rocket Launcher > --- INVENTORY -------- Light Treads Improved Heat Sink Improved Heat Sink Seismic Detector Transport Network Coupler Light Assault Rifle Light Assault Rifle Grenade Launcher [Rating: 13] Favorites ----------- Power Light Nuclear Core Engine Ion Engine Power Core Light Nuclear Core Propulsion Light Treads Treads Light Treads Wheel Compact Wheel Utility Huge Storage Unit Device Improved Heat Sink Storage Huge Storage Unit Weapon Light Assault Rifle Energy Gun EM Pulse Gun Ballistic Gun Light Assault Rifle Launcher Rocket Launcher Build | -11 -10 -10 -10 -9 ------- Run | Scr Mat Min Exi Min Slots Evolved . | . . . . . Power . | . . . . . Propulsion . | . . . . . Utility . | . . . . . Weapon . | . . . . . Parts Attached 25 | 6 4 9 3 3 Power 4 | 1 . 3 . . Engine 2 | 1 . 1 . . Core 2 | . . 2 . . Reactor . | . . . . . Propulsion 6 | 2 1 2 . 1 Treads 5 | 2 . 2 . 1 Leg . | . . . . . Wheel 1 | . 1 . . . Hover . | . . . . . Flight . | . . . . . Utility 4 | 1 1 1 1 . Device 2 | . . 1 1 . Storage 2 | 1 1 . . . Processor . | . . . . . Hackware . | . . . . . Protection . | . . . . . Artifact . | . . . . . Weapon 11 | 2 2 3 2 2 Energy Gun 2 | 1 . 1 . . Energy Cannon . | . . . . . Ballistic Gun 5 | 1 2 1 . 1 Ballistic Cannon . | . . . . . Launcher 4 | . . 1 2 1 Special Weapon . | . . . . . Impact Weapon . | . . . . . Slashing Weapon . | . . . . . Piercing Weapon . | . . . . . Special Melee Weapon . | . . . . . Unidentified Prototypes . | . . . . . Parts Lost 12 | . 1 7 1 3 Power 4 | . . 3 1 . Propulsion 2 | . . 2 . . Utility 2 | . . . . 2 Weapon 4 | . 1 2 . 1 Highest Loss Streak 3 | . 1 3 1 3 To Critical Strikes . | . . . . . Average Slot Usage (%) 82 | . 85 80 85 51 Engine 4 | . 14 2 . . Core 8 | . . 9 13 . Treads 24 | . 20 23 28 28 Wheel 3 | . 7 3 . . Device 8 | . . 8 14 4 Storage 13 | . 14 14 13 . Ballistic Gun 18 | . 27 16 14 16 Naked Turns . | . . . . . Heaviest Build 91 | 13 88 88 91 4 Greatest Support 40 | 40 40 40 40 40 Greatest Overweight (x) 5 | 4 5 5 2 . Average Overweight (x) 2 | . 2 2 1 . Largest Inventory Capacity 25 | 8 25 25 25 5 Average Capacity 21 | 7 17 25 24 5 Most Carried 11 | 4 10 11 9 5 Average Carried 8 | 2 7 8 8 4 Final Capacity 25 | 8 25 25 5 5 Final Carried 10 | 4 10 9 5 4 Class Distribution -------------------- 100% | Mutant Dominant Class ---------------- Mutant | -10/Materials Mutant | -10/Mines Mutant | -10/Exiles Mutant | -9/Mines Resources | -11 -10 -10 -10 -9 ----------- Run | Scr Mat Min Exi Min Matter Collected 659 | 186 317 126 . 30 Remotely . | . . . . . Salvage Created 1123 | 24 636 347 4 112 Parts 64 | 2 32 24 . 6 Haulers Intercepted 1 | . 1 . . . Recyclers Shooed 2 | . 1 1 . . Parts Field Recycled . | . . . . . Retrieved Matter . | . . . . . Parts Self-Destructed . | . . . . . Prevented . | . . . . . Kills | -11 -10 -10 -10 -9 ------- Run | Scr Mat Min Exi Min Combat Hostiles Destroyed 32 | . 13 12 2 5 Guns 28 | . 13 12 . 3 AOE 4 | . . . 2 2 Classes Destroyed 6 | 1 2 2 1 . Worker 1 | . . 1 . . Tunneler 1 | 1 . . . . Hauler 1 | . 1 . . . Swarmer 7 | . . 7 . . Grunt 20 | . 13 5 . 2 Assembled 5 | . . . 2 3 Best Kill Streak 3 | 1 2 3 2 3 Combat Bots Only 3 | . 2 3 2 3 Max Kills in Single Turn 2 | 1 1 1 2 2 Gunslinging . | . . . . . Exploded 2 | . . . 2 2 Melee . | . . . . . Uniques/NPCs Destroyed . | . . . . . Combat | -11 -10 -10 -10 -9 -------- Run | Scr Mat Min Exi Min Damage Taken 1488 | . 622 492 133 241 Core 262 | . 92 106 2 62 Absorbed by Shields . | . . . . . Core Remaining (%) 100 | 100 . . . . Volleys Fired 140 | 3 69 47 2 19 Largest 2 | 2 2 2 2 2 Hottest 60 | 60 40 60 53 40 Shots Fired 242 | 6 137 74 4 21 Gun 239 | 6 137 74 2 20 Cannon . | . . . . . Launcher 3 | . . . 2 1 Special . | . . . . . Kinetic 226 | 3 137 64 2 20 Thermal . | . . . . . Explosive 3 | . . . 2 1 Electromagnetic 13 | 3 . 10 . . Robot Hit Streak 12 | 5 11 12 1 7 Robot Miss Streak 4 | 1 4 4 1 2 Penetration Max . | . . . . . Secondary Targets 2 | . 1 1 . . Max Gunslinging Chain 1 | . 1 1 . . Shots Hit Robots 162 | 5 92 49 1 15 Core Hits 77 | 2 32 28 3 12 Critical Kills . | . . . . . Critical Parts Destroyed 2 | . 2 . . . Critical Strikes 3 | . 2 1 . . Destroy 2 | . 2 . . . Corrupt 1 | . . 1 . . Melee Attacks . | . . . . . Impact . | . . . . . Slashing . | . . . . . Piercing . | . . . . . Sneak Attacks . | . . . . . Combat Hostiles . | . . . . . Follow-up Attacks . | . . . . . Damage Inflicted 1730 | 56 893 427 140 214 Guns 1487 | 56 893 427 . 111 Cannons . | . . . . . Explosions 243 | . . . 140 103 Melee . | . . . . . Ramming . | . . . . . Kinetic 1392 | 16 893 372 . 111 Thermal . | . . . . . Explosive 243 | . . . 140 103 Electromagnetic 95 | 40 . 55 . . Impact . | . . . . . Slashing . | . . . . . Piercing . | . . . . . Highest Corruption 9 | . . . . 9 Average Corruption 8 | . . . . 8 Corruption Purged . | . . . . . Corruption Blocked . | . . . . . Effects 3 | . . . . 3 Message Errors 1 | . . . . 1 Matter Fused 1 | . . . . 1 Misfires 1 | . . . . 1 Overload Shots . | . . . . . Overflow Damage 9 | . . . 9 . Projectiles . | . . . . . Explosions 9 | . . . 9 . Melee . | . . . . . Knockbacks . | . . . . . Impact . | . . . . . Kinetic . | . . . . . Secondary . | . . . . . Self-Inflicted Damage 31 | . . . . 31 Shots 1 | . . . . 1 Rammed . | . . . . . Targets Rammed . | . . . . . Kicked . | . . . . . Crushed . | . . . . . Highest Temperature 41 | 20 25 41 14 . Average Temperature 11 | 15 10 14 11 . Received Heat Transfer 593 | . 363 168 20 42 Siege Activations . | . . . . . Robots Corrupted . | . . . . . Combat Hostiles . | . . . . . Parts Fried . | . . . . . Impact Corruptions . | . . . . . Robots Melted . | . . . . . Combat Hostiles . | . . . . . Parts Melted . | . . . . . Heat Transferred . | . . . . . Parts Sabotaged . | . . . . . Parts Stolen . | . . . . . Parts Stripped . | . . . . . Power Chain Reactions . | . . . . . Missiles Intercepted . | . . . . . Alert | -11 -10 -10 -10 -9 ------- Run | Scr Mat Min Exi Min Peak Influence 257 | 5 257 223 . 61 Initial 58 | . 3 58 . . Average 71 | . 81 74 . 7 Maximum Alert Level 1 | . 1 1 . . Low Security (%) 94 | 100 94 93 . 100 Level 1 5 | . 5 6 . . Level 2 . | . . . . . Level 3 . | . . . . . Level 4 . | . . . . . Level 5 . | . . . . . High Security . | . . . . . Max Security . | . . . . . Squads Dispatched 4 | . 4 . . . Investigation 2 | . 2 . . . Extermination . | . . . . . Reinforcement 2 | . 2 . . . Assault . | . . . . . Garrison . | . . . . . Intercept . | . . . . . Searches Triggered . | . . . . . Construction Impeded . | . . . . . Haulers Reinforced . | . . . . . Active Scanning Responses . | . . . . . Cargo Convoy Interrupts . | . . . . . Stealth | -11 -10 -10 -10 -9 --------- Run | Scr Mat Min Exi Min Distress Signals 2 | . . 1 . 1 Communications Jammed . | . . . . . Distress Signals . | . . . . . Times Spotted 54 | . 27 14 7 6 Peak Tracking Total 9 | . 3 3 9 3 Tactical Retreats . | . . . . . Traps | -11 -10 -10 -10 -9 ------- Run | Scr Mat Min Exi Min Traps Triggered 2 | . 2 . . . Indirectly . | . . . . . Trap Hack Attempts . | . . . . . Triggered . | . . . . . Disarmed . | . . . . . Reprogrammed . | . . . . . Reused . | . . . . . Traps Extracted . | . . . . . Installed . | . . . . . Triggered . | . . . . . Machines | -11 -10 -10 -10 -9 ---------- Run | Scr Mat Min Exi Min Machines Disabled 3 | . . 1 2 . Max in Single Turn 1 | . . . 1 . Machines Sabotaged . | . . . . . Garrisons Compromised . | . . . . . Overloaded Fab Kills . | . . . . . Hacking | -11 -10 -10 -10 -9 --------- Run | Scr Mat Min Exi Min Machines Accessed 2 | . 1 . 1 . Terminals 1 | . 1 . . . Fabricators . | . . . . . Repair Stations . | . . . . . Recycling Units . | . . . . . Scanalyzers . | . . . . . Garrison Access . | . . . . . Total Hacks 3 | . 2 . 1 . Successful 2 | . 1 . 1 . Failed . | . . . . . Catastrophic . | . . . . . Database Lockouts 1 | . 1 . . . Manual 5 | . 4 . 1 . Terminals 2 | . 2 . . . Fabricators . | . . . . . Repair Stations . | . . . . . Recycling Units . | . . . . . Scanalyzers . | . . . . . Garrison Access . | . . . . . Terminal Hacks 2 | . 1 . 1 . Robot Analysis 1 | . 1 . . . EX-Prototype ID Bank 1 | . . . 1 . Fabricator Hacks . | . . . . . Repair Station Hacks . | . . . . . Recycling Unit Hacks . | . . . . . Scanalyzer . | . . . . . Garrison Access Hacks . | . . . . . Unauthorized Hacks . | . . . . . Terminals . | . . . . . Fabricators . | . . . . . Repair Stations . | . . . . . Recycling Units . | . . . . . Scanalyzers . | . . . . . Garrison Access . | . . . . . Data Cores Recovered . | . . . . . Used . | . . . . . Hacking Detections 2 | . 2 . . . Full Trace Events . | . . . . . Feedback Events . | . . . . . Feedback Blocked . | . . . . . Robot Schematics Acquired . | . . . . . Robots Built . | . . . . . Authchips . | . . . . . Time . | . . . . . Total Robot Build Rating . | . . . . . Part Schematics Acquired . | . . . . . Parts Built . | . . . . . Authchips . | . . . . . Time . | . . . . . Total Part Build Rating . | . . . . . Parts Repaired . | . . . . . Time . | . . . . . Parts Recycled . | . . . . . Recycled Matter . | . . . . . Retrieved Matter . | . . . . . Retrieved Components . | . . . . . Parts Scanalyzed . | . . . . . Part Schematics Acquired . | . . . . . Parts Damaged . | . . . . . Bothacking | -11 -10 -10 -10 -9 ------------ Run | Scr Mat Min Exi Min Used RIF Installer . | . . . . . Robots Hacked . | . . . . . Non-combat . | . . . . . Combat . | . . . . . Robot Hacks Applied . | . . . . . Relay Couplers Released . | . . . . . Fabnet Peak Effective % . | . . . . . Robots Rewired . | . . . . . Allies Hacked . | . . . . . Hacks Repelled . | . . . . . Allies | -11 -10 -10 -10 -9 -------- Run | Scr Mat Min Exi Min Total Allies 3 | . . 3 . . Largest Group 3 | . . 3 2 . Highest-Rated Group 40 | . . 40 24 . Highest-Rated Ally 16 | . . 16 16 . Total Orders . | . . . . . Ally Attacks 25 | . . 10 15 . Total Damage 251 | . . 133 118 . Kills 4 | . . 1 3 . Allies Corrupted . | . . . . . Allies Melted . | . . . . . Intel | -11 -10 -10 -10 -9 ------- Run | Scr Mat Min Exi Min Robot Analysis Total 1 | . 1 . . . Derelict Logs Recovered 1 | . . 1 . . Drone Launches . | . . . . . Drone Recoveries . | . . . . . Exploration | -11 -10 -10 -10 -9 ------------- Run | Scr Mat Min Exi Min Turns Passed 3714 | 86 1005 1238 1262 123 Spaces Moved 1375 | 43 470 410 400 52 Core 12 | 12 . . . . Treads 991 | 31 234 274 400 52 Legs . | . . . . . Wheels 372 | . 236 136 . . Hover . | . . . . . Flight . | . . . . . Fastest Speed 50 | 50 160 175 160 160 Average Speed 240 | 153 167 271 312 160 Slowest Speed 320 | 250 175 320 320 160 Overloaded Moves . | . . . . . Propulsion Burnouts . | . . . . . Robots Hopped . | . . . . . Cave-ins Triggered . | . . . . . Exploration Rate (%) 54 | 4 93 97 62 18 Regions Visited 4 Branch Regions 3 Pre-discovered Areas . | . . . . . Known Exits Taken . | . . . . . Unknown Exits Taken 4 | 1 1 1 1 . Scrap Searched 2 | . . 2 . . Spaces Dug 7 | . . . . 7 Terrain Destroyed 23 | . . . 16 7 Melee . | . . . . . Projectile . | . . . . . AOE 23 | . . . 16 7 Terrain Rammed . | . . . . . Walls Destroyed . | . . . . . Machines Disabled . | . . . . . Actions | -11 -10 -10 -10 -9 --------- Run | Scr Mat Min Exi Min Total 1578 | 55 570 471 408 74 Wait 22 | . 19 3 . . Move 1371 | 42 469 409 399 52 Hop . | . . . . . Pick Up 16 | 4 8 3 1 . Fast Attach 10 | 6 . 3 1 . Attach 7 | . 1 4 1 1 Detach . | . . . . . Swap 8 | . 3 2 1 2 Drop 4 | . 1 . 3 . Fire 140 | 3 69 47 2 19 Melee . | . . . . . Ram . | . . . . . Kick . | . . . . . Crush . | . . . . . Escape Stasis . | . . . . . Rewire . | . . . . . Trap . | . . . . . Miscellaneous . | . . . . . Route ------- -11/Scrapyard -10/Materials (discovered 4 exits: [*Mat x3] / [*Min]) -10/Mines (discovered 3 exits: [*Mat x2] / *Exi) -10/Exiles -9/Mines History --------- Turn | Location | Event 15 | -11/Scrapyard | Discovered new exit (range 15) 87 | -11/Scrapyard | Entered Materials 262 | -10/Materials | Central database locked down 310 | -10/Materials | Discovered new exit (range 14) 315 | -10/Materials | Build established: Mutant 468 | -10/Materials | Discovered new exit (range 13) 811 | -10/Materials | Discovered new exit (range 16) 1060 | -10/Materials | Discovered new exit (range 12) 1092 | -10/Materials | Entered Mines 1099 | -10/Mines | Received a Rocket Launcher from a helpful Derelict 1176 | -10/Mines | Core integrity fell below 50% 1207 | -10/Mines | Lost 3 parts (1p1n1w) 1283 | -10/Mines | Discovered new exit (range 6) 2082 | -10/Mines | Assisted by bots powering up and referring to "LRC-V3" 2185 | -10/Mines | Deemed a non-threat by the Exiles lab entrance 2185 | -10/Mines | Discovered new exit (range 5) 2220 | -10/Mines | Discovered new exit (range 8) 2330 | -10/Mines | Entered Exiles 2330 | -10/Exiles | Accompanied by 2 allies 2410 | -10/Exiles | Met 8R-AWN 2465 | -10/Exiles | Met EX-HEX 2558 | -10/Exiles | Met EX-BIN 2602 | -10/Exiles | Aligned with FarCom system 2606 | -10/Exiles | Given EX-Vault access code 2686 | -10/Exiles | Opened EX-Vault 2759 | -10/Exiles | Warned to stay clear of 0b10 Research branches 2922 | -10/Exiles | Met EX-DEC 3031 | -10/Exiles | Discovered new exit (range 14) 3528 | -10/Exiles | Attacked by the Exiles 3592 | -10/Exiles | Entered Mines 3611 | -9/Mines | Excavation squad dispatched 3611 | -9/Mines | A large section of the Mines collapsed 3628 | -9/Mines | Core integrity fell below 20% 3644 | -9/Mines | Lost 3 parts (2u1w) 3715 | -9/Mines | Destroyed by Y-45 Defender with Beam Rifle Last Messages --------------- 03611_ ALERT: Suspicious cave-in, suspected derelict activity in mines. Dispatching escorted excavation squad. 03611_ Imp. Heat Sink destroyed. 03611_ Seismic Detector destroyed. 03611_ System corrupted by crushing effect (+4). 03611_ System corrupted by crushing effect (+1). 03613_ Lgt. Assault Rifle destroyed. 03613_ System corrupted by crushing effect (+4). 03616_ as-20021 destroyed. 03622_ VZRMILKX52NXR,=N<0Q# QK,DNMNXPZLE= 03625_ as-50376 destroyed. 03639_ as-54068 destroyed. 03641_ Acquired 11 matter. 03643_ Acquired 19 matter. 03665_ System corrupted: Matter fused (-5). 03681_ System corrupted: FCS attempts to trigger Lgt. Assault Rifle. 03681_ System corrupted: Lgt. Assault Rifle misfires. 03700_ G-34 Mercenary destroyed. 03700_ T-07 Excavator sends out distress signal. 03715_ Critical hit (Burn: +37). Map ----- +----------------------------------------------------+ | ??????????????????????????????? | | ??????????????????????????????? | | ??????????????????????????????? | | ??????????????????????????????? | | ??????????????????????#####???? | | ?????????????????????## #???? | | ????????????????????## ???? | | ????????????????????# ???? | | ????????????????????? ???? | | ?????????????????????? #???? | | ???????????????????????####???? | | ???????????????????????#% #???? | | ???????########???????##"####?? | | ??????## ####???##"## ##? | | ?????## ##### ## ## | | ????## ### # | | ????# ##?## | | ????# ##???## ####### | | ????# ##????## ##?????## | | ????# ##????###???????# | | ???## #??????????????## ### | | ???# #???????????????####?? | | ???# !##????????????????????? | | ???# *%=#????????????????????? | | ???# =%! #????????????????????? | | ??## @ #????### ???????? | | ??# # ???????? | | ??# Y ???????? | | ??## #### ???????? | | ???## ????????????????? | | ????# ?????????????? | | ???? ##????????????? | | ??? ## ##?????????????? | | ??# ##?####??????????????? | | ??# #????????????????????? | | ??## ????????????????????? | | ???## ????????????????????? | | ????## #????????????????????? | | ?????#####????????????????????? | | ??????????????????????????????? | | ??????????????????????????????? | | ??????????????????????????????? | | ??????????????????????????????? | | ??????????????????????????????? | | ??????????????????????????????? | | ??????????????????????????????? | | ??????????????????????????????? | | ??????????????????????????????? | | ??????????????????????????????? | | ??????????????????????????????? | +----------------------------------------------------+ Best States ------------- Heat Dissipation 39 Energy Generation 14 Energy Capacity 250 Matter Stores 300 Matter Capacity 300 Sight Range 16 Terrain Scan Density 10 Evasion (%) 40 Recoil Reduction 2 Item Schematics ----------------- None Robot Schematics ------------------ None Fabricated ------------ Nothing Alien Tech Used ----------------- None Achievements -------------- None Challenges ------------ None Game ------ Seed AlertDefenseKit Manual? 0 Play Time 00:11:08 Cumulative 334.6 hours Start 2022.04.16 @ 15:19:25 End 2022.04.16 @ 15:29:49 Sessions 1 Manual Loads 0 Difficulty Rogue Special Mode None Game No. 488 Rogue 488 Adventurer 0 Explorer 0 Win Type - Total 6 Types 4/0/1/1/0/0/0/0/0 Lore% 81 Gallery% 84 Achievement% 66 Wizard Run 0 Options --------- ASCII 0 Keyboard 1 Movement Numpad Keybinds 0 Fullscreen 2 Font 24/Smallcaps Map View 76x50 Tactical HUD 1 Map Filters NONE Filters NONE Steam 1 RUN: aa0758c1-f993-4053-94de-5409574953e5